fUST/lending_fUST_20250124
["ID","MTS","AMOUNT","RATE_DAILY","PERIOD"]
[350157500,1737660634671,-500.0,0.00019178,2]
[350157501,1737660634680,-501.0516362,0.00019178,2]
[350157502,1737660634694,-470.83355585,0.00019178,2]
[350157503,1737660634704,-500.0,0.00019178,2]
[350157504,1737660634714,-500.0,0.00019178,2]
[350157505,1737660634723,-500.0,0.00019178,2]
[350157506,1737660634733,-500.0,0.00019178,2]
[350157507,1737660634743,-500.0,0.00019178,2]
[350157508,1737660634752,-500.0,0.00019178,2]
[350157509,1737660634761,-500.0,0.00019178,2]
[350157510,1737660634771,-500.0,0.00019178,2]
[350157511,1737660634780,-500.0,0.00019178,2]
[350157512,1737660634790,-500.0,0.00019178,2]
[350157513,1737660634800,-500.0,0.00019178,2]
[350157514,1737660634810,-500.0,0.00019178,2]
[350157515,1737660634819,-504.96019955,0.00019178,2]
[350157516,1737660634934,-500.0,0.00019178,2]
[350157517,1737660634944,-500.0,0.00019178,2]
[350157518,1737660634954,-1469.54,0.00019178,2]
[350157519,1737660634964,-500.0,0.00019178,2]
[350157520,1737660634975,-500.0,0.00019178,2]
[350157521,1737660634984,-500.0,0.00019178,2]
[350157522,1737660634993,-362.32955373,0.00019178,2]
[350157523,1737660635002,-1554.23,0.00019178,2]
[350157524,1737660635012,-500.0,0.00019178,2]
[350157525,1737660635021,-500.0,0.00019178,2]
[350157526,1737660635031,-500.0,0.00019178,2]
[350157527,1737660635041,-151.0,0.00019178,2]
[350157528,1737660635051,-151.0,0.00019178,2]
[350157529,1737660635060,-368.45661824,0.00019178,2]
[350157530,1737660635071,-1182.63,0.00019178,2]
[350157531,1737660635080,-500.0,0.00019178,2]
[350157532,1737660635089,-500.0,0.00019178,2]
[350157533,1737660635099,-500.0,0.00019178,2]
[350157534,1737660635108,-500.0,0.00019178,2]
[350157535,1737660635118,-500.0,0.00019178,2]
[350157536,1737660635128,-500.0,0.00019178,2]
[350157537,1737660635138,-930.03,0.00019178,2]
[350157538,1737660635148,-500.0,0.00019178,2]
[350157539,1737660635157,-151.0,0.00019178,2]
[350157540,1737660635167,-4148.73,0.00019178,2]
[350157541,1737660635178,-151.0,0.00019178,2]
[350157542,1737660635187,-501.68,0.00019178,2]
[350157543,1737660635197,-500.0,0.00019178,2]
[350157544,1737660635206,-500.0,0.00019178,2]
[350157545,1737660635215,-151.0,0.00019178,2]
[350157546,1737660635225,-151.0,0.00019178,2]
[350157547,1737660635234,-500.0,0.00019178,2]
[350157548,1737660635244,-500.0,0.00019178,2]
[350157549,1737660635254,-500.0,0.00019178,2]
[350157550,1737660635264,-626.76402058,0.00019178,2]
[350157551,1737660635273,-952.41,0.00019178,2]
[350157552,1737660635284,-500.0,0.00019178,2]
[350157553,1737660635294,-500.0,0.00019178,2]
[350157554,1737660635304,-500.0,0.00019178,2]
[350157555,1737660635314,-500.0,0.00019178,2]
[350157556,1737660635325,-500.0,0.00019178,2]
[350157557,1737660635335,-500.0,0.00019178,2]
[350157558,1737660635345,-500.0,0.00019178,2]
[350157559,1737660635354,-500.0,0.00019178,2]
[350157560,1737660635364,-500.0,0.00019178,2]
[350157561,1737660635375,-469.98379289,0.00019178,2]
[350157562,1737660635385,-500.0,0.00019178,2]
[350157563,1737660635395,-500.0,0.00019178,2]
[350157564,1737660635404,-500.0,0.00019178,2]
[350157565,1737660635414,-5250.15447795,0.00019178,2]
[350157566,1737660635424,-500.0,0.00019178,2]
[350157567,1737660635433,-500.0,0.00019178,2]
[350157568,1737660635443,-500.0,0.00019178,2]
[350157569,1737660635451,-521.91521285,0.00019178,2]
[350157570,1737660635461,-151.0,0.00019178,2]
[350157571,1737660635471,-9159.3,0.00019178,2]
[350157572,1737660635481,-500.0,0.00019178,2]
[350157573,1737660635490,-3464.7,0.00019178,2]
[350157574,1737660635499,-151.0,0.00019178,2]
[350157575,1737660635509,-500.0,0.00019178,2]
[350157576,1737660635519,-500.0,0.00019178,2]
[350157577,1737660635529,-151.0,0.00019178,2]
[350157578,1737660635546,-500.0,0.00019178,2]
[350157579,1737660635555,-500.0,0.00019178,2]
[350157580,1737660635564,-500.0,0.00019178,2]
[350157581,1737660635573,-1500.69,0.00019178,2]
[350157582,1737660635583,-500.0,0.00019178,2]
[350157583,1737660635592,-500.0,0.00019178,2]
[350157584,1737660635602,-1347.95,0.00019178,2]
[350157585,1737660635611,-500.0,0.00019178,2]
[350157586,1737660635621,-1926.06,0.00019178,2]
[350157587,1737660635631,-500.0,0.00019178,2]
[350157588,1737660635640,-500.0,0.00019178,2]
[350157589,1737660635650,-562.41,0.00019178,2]
[350157590,1737660635660,-4338.69,0.00019178,2]
[350157591,1737660635670,-414.18505106,0.00019178,2]
[350157592,1737660635680,-761.15,0.00019178,2]
[350157593,1737660635693,-500.0,0.00019178,2]
[350157594,1737660635702,-500.0,0.00019178,2]
[350157595,1737660635711,-500.0,0.00019178,2]
[350157596,1737660635720,-500.0,0.00019178,2]
[350157597,1737660635730,-994.46,0.00019178,2]
[350157598,1737660635740,-500.0,0.00019178,2]
[350157599,1737660635750,-500.0,0.00019178,2]
[350157600,1737660635760,-500.0,0.00019178,2]
[350157601,1737660635770,-608.38,0.00019178,2]
[350157602,1737660635787,-500.0,0.00019178,2]
[350157603,1737660635797,-500.0,0.00019178,2]
[350157604,1737660635807,-500.0,0.00019178,2]
[350157605,1737660635816,-500.0,0.00019178,2]
[350157606,1737660635825,-509.92240766,0.00019178,2]
[350157607,1737660635835,-500.0,0.00019178,2]
[350157608,1737660635845,-500.0,0.00019178,2]
[350157609,1737660635855,-500.0,0.00019178,2]
[350157610,1737660635865,-285.230802,0.00019178,2]
[350157611,1737660635875,-500.0,0.00019178,2]
[350157612,1737660635885,-500.0,0.00019178,2]
[350157613,1737660635899,-500.0,0.00019178,2]
[350157614,1737660635913,-500.0,0.00019178,2]
[350157615,1737660635928,-500.0,0.00019178,2]
[350157616,1737660635942,-500.0,0.00019178,2]
[350157617,1737660635954,-500.0,0.00019178,2]
[350157618,1737660635965,-964.27,0.00019178,2]
[350157619,1737660635979,-500.0,0.00019178,2]
[350157620,1737660635992,-500.0,0.00019178,2]
[350157621,1737660636005,-500.0,0.00019178,2]
[350157622,1737660636019,-235.53198722,0.00019178,2]
[350157623,1737660636035,-169.385011,0.00019178,2]
[350157624,1737660636050,-295.03167715,0.0001919,2]
[350157625,1737660636063,-6012.30227187,0.00019215,2]
[350157626,1737660636078,-300.21185406,0.00019314,2]
[350157627,1737660636091,-502.68921892,0.00019315,3]
[350157628,1737660636103,-500.0,0.00019315,3]
[350157629,1737660636116,-500.0,0.00019315,3]
[350157630,1737660636129,-500.0,0.00019315,3]
[350157631,1737660636142,-500.0,0.00019315,3]
[350157632,1737660636155,-500.0,0.00019315,3]
[350157633,1737660636167,-500.0,0.00019315,3]
[350157634,1737660636178,-500.0,0.00019315,3]
[350157635,1737660636189,-539.83,0.00019315,3]
[350157636,1737660636200,-215.57091834,0.00019315,3]
[350157637,1737660636212,-500.0,0.00019315,3]
[350157638,1737660636225,-500.0,0.00019315,3]
[350157639,1737660636238,-500.0,0.00019315,3]
[350157640,1737660636251,-500.0,0.00019315,3]
[350157641,1737660636262,-500.0,0.00019315,3]
[350157642,1737660636276,-500.0,0.00019315,3]
[350157643,1737660636296,-500.0,0.00019315,3]
[350157644,1737660636308,-500.0,0.00019315,3]
[350157645,1737660636323,-500.0,0.00019315,3]
[350157646,1737660636335,-500.0,0.00019315,3]
[350157647,1737660636346,-500.0,0.00019315,3]
[350157648,1737660636357,-500.0,0.00019315,3]
[350157649,1737660636369,-420.70558857,0.00019315,3]
[350157650,1737660636382,-210.77487987,0.00019315,3]
[350157651,1737660636397,-500.0,0.00019315,3]
[350157652,1737660636410,-502.13715398,0.00019315,3]
[350157653,1737660636421,-500.0,0.00019315,3]
[350157654,1737660636433,-503.03276632,0.00019315,3]
[350157655,1737660636444,-500.0,0.00019315,3]
[350157656,1737660636456,-554.69,0.00019315,3]
[350157657,1737660636468,-500.0,0.00019315,3]
[350157658,1737660636479,-500.0,0.00019315,3]
[350157659,1737660636490,-179.613784,0.00019315,2]
[350157660,1737660636500,-500.0,0.00019315,3]
[350157661,1737660636512,-230.58,0.00019315,3]
[350157662,1737660636523,-500.0,0.00019315,3]
[350157663,1737660636536,-500.0,0.00019315,3]
[350157664,1737660636547,-500.0,0.00019315,3]
[350157665,1737660636558,-500.0,0.00019315,3]
[350157666,1737660636569,-500.0,0.00019315,3]
[350157667,1737660636580,-500.0,0.00019315,3]
[350157668,1737660636591,-500.0,0.00019315,3]
[350157669,1737660636602,-500.0,0.00019315,3]
[350157670,1737660636613,-500.0,0.00019315,3]
[350157671,1737660636624,-500.0,0.00019315,3]
[350157672,1737660636635,-500.0,0.00019315,3]
[350157673,1737660636647,-500.0,0.00019315,3]
[350157674,1737660636659,-500.0,0.00019315,3]
[350157675,1737660636670,-500.0,0.00019315,3]
[350157676,1737660636681,-500.0,0.00019315,3]
[350157677,1737660636692,-500.0,0.00019315,3]
[350157678,1737660636710,-500.0,0.00019315,3]
[350157679,1737660636721,-405.92,0.00019315,3]
[350157680,1737660636732,-263.76,0.00019315,3]
[350157681,1737660636743,-500.0,0.00019315,3]
[350157682,1737660636756,-500.0,0.00019315,3]
[350157683,1737660636767,-500.0,0.00019315,3]
[350157684,1737660636779,-500.0,0.00019315,3]
[350157685,1737660636794,-874.17,0.00019315,3]
[350157686,1737660636806,-500.0,0.00019315,3]
[350157687,1737660636817,-500.0,0.00019315,3]
[350157688,1737660636829,-500.0,0.00019315,3]
[350157689,1737660636840,-500.0,0.00019315,3]
[350157690,1737660636852,-500.0,0.00019315,3]
[350157691,1737660636863,-1469.54,0.00019315,3]
[350157692,1737660636874,-500.0,0.00019315,3]
[350157693,1737660636886,-1554.23,0.00019315,3]
[350157694,1737660636897,-377.72,0.00019315,3]
[350157695,1737660636908,-500.0,0.00019315,3]
[350157696,1737660636920,-500.0,0.00019315,3]
[350157697,1737660636931,-151.0,0.00019315,2]
[350157698,1737660636942,-1182.63,0.00019315,3]
[350157699,1737660636953,-500.0,0.00019315,3]
[350157700,1737660636965,-500.0,0.00019315,3]
[350157701,1737660636979,-500.0,0.00019315,3]
[350157702,1737660636989,-500.0,0.00019315,3]
[350157703,1737660637000,-930.03,0.00019315,3]
[350157704,1737660637011,-500.0,0.00019315,3]
[350157705,1737660637022,-501.68,0.00019315,3]
[350157706,1737660637034,-4148.73,0.00019315,3]
[350157707,1737660637045,-500.0,0.00019315,3]
[350157708,1737660637175,-500.0,0.00019315,3]
[350157709,1737660637189,-500.0,0.00019315,3]
[350157710,1737660637199,-500.0,0.00019315,3]
[350157711,1737660637209,-952.41,0.00019315,3]
[350157712,1737660637219,-500.0,0.00019315,3]
[350157713,1737660637229,-500.0,0.00019315,3]
[350157714,1737660637239,-500.0,0.00019315,3]
[350157715,1737660637248,-500.0,0.00019315,3]
[350157716,1737660637257,-500.0,0.00019315,3]
[350157717,1737660637267,-540.76601751,0.00019315,3]
[350157718,1737660637276,-500.0,0.00019315,3]
[350157719,1737660637288,-500.0,0.00019315,3]
[350157720,1737660637298,-500.0,0.00019315,3]
[350157721,1737660637307,-500.0,0.00019315,3]
[350157722,1737660637316,-500.0,0.00019315,3]
[350157723,1737660637326,-500.0,0.00019315,3]
[350157724,1737660637335,-3658.77353391,0.00019315,3]
[350157763,1737660638097,-500.0,0.00018999,2]
[350157764,1737660638106,-421.30039492,0.00018999,2]
[350157766,1737660638116,-7322.21,0.00019178,2]
[350157768,1737660638126,-1.18960508,0.00019178,2]
[350157771,1737660638154,-498.81039492,0.00019178,2]
[350157774,1737660638164,-4881.41288999,0.00019315,3]
[350157930,1737660640147,-619.1135761,0.00019315,3]
[350157932,1737660640157,-500.0,0.00019315,3]
[350157935,1737660640167,-3464.7,0.00019315,3]
[350157937,1737660640177,-500.0,0.00019315,3]
[350157939,1737660640186,-500.0,0.00019315,3]
[350157941,1737660640195,-500.0,0.00019315,3]
[350157943,1737660640205,-500.0,0.00019315,3]
[350157945,1737660640214,-500.0,0.00019315,3]
[350157947,1737660640224,-1500.69,0.00019315,3]
[350157949,1737660640234,-500.0,0.00019315,3]
[350157951,1737660640243,-345.28,0.00019315,3]
[350157953,1737660640252,-1347.95,0.00019315,3]
[350157955,1737660640262,-500.0,0.00019315,3]
[350157957,1737660640272,-1926.06,0.00019315,3]
[350157959,1737660640281,-500.0,0.00019315,3]
[350157961,1737660640294,-562.41,0.00019315,3]
[350157963,1737660640303,-4338.69,0.00019315,3]
[350157965,1737660640313,-450.71775519,0.00019315,3]
[350158469,1737660646101,-1347.07,0.00019178,2]
[350158471,1737660646111,-3803.0,0.00019178,2]
[350158473,1737660646121,-500.0,0.00019178,2]
[350158475,1737660646131,-310.43224481,0.00019315,3]
[350158477,1737660646141,-500.0,0.00019315,3]
[350158479,1737660646151,-500.0,0.00019315,3]
[350158481,1737660646160,-500.0,0.00019315,3]
[350158483,1737660646170,-500.0,0.00019315,3]
[350158485,1737660646180,-994.46,0.00019315,3]
[350158487,1737660646189,-500.0,0.00019315,3]
[350158489,1737660646199,-500.0,0.00019315,3]
[350158491,1737660646208,-608.38,0.00019315,3]
[350158493,1737660646218,-500.0,0.00019315,3]
[350158495,1737660646227,-500.0,0.00019315,3]
[350158497,1737660646237,-500.0,0.00019315,3]
[350158499,1737660646246,-500.0,0.00019315,3]
[350158501,1737660646256,-500.0,0.00019315,3]
[350158503,1737660646265,-500.0,0.00019315,3]
[350158505,1737660646274,-500.0,0.00019315,3]
[350158507,1737660646283,-500.0,0.00019315,3]
[350158509,1737660646296,-500.0,0.00019315,3]
[350158511,1737660646305,-500.0,0.00019315,3]
[350158513,1737660646314,-964.27,0.00019315,3]
[350158515,1737660646324,-500.0,0.00019315,3]
[350158517,1737660646333,-500.0,0.00019315,3]
[350158519,1737660646342,-500.0,0.00019315,3]
[350158521,1737660646353,-4265.92625071,0.00019315,3]
[350158524,1737660646366,-2413.85,0.00019315,3]
[350159225,1737660832101,1000.0,0.0002,20]
[350159227,1737660926680,1000.0,0.0002,20]
[350159232,1737661636137,-194.433565,0.00016384,2]
[350159233,1737661636158,-785.4134831,0.00016489,2]
[350159234,1737661636180,-194.433565,0.00016549,2]
[350159235,1737661636203,-300.0,0.00017132,2]
[350159236,1737661636225,-1386.1367635,0.00017133,2]
[350159237,1737661657747,369.776867,0.00013973,2]
[350159239,1737661764227,-2461.59753684,0.00016961,2]
[350159240,1737661764252,-300.0,0.00017132,2]
[350159241,1737661764273,-8572.529973,0.00017133,2]
[350159242,1737661764297,-236.632294,0.00017182,2]
[350159243,1737661764321,-156.98430157,0.00017402,2]
[350159244,1737661764347,-410.343703,0.00017562,2]
[350159245,1737661764372,-245.963131,0.00017808,2]
[350159246,1737661764393,-22114.60674061,0.00017846,2]
[350159304,1737661832564,-2785.39325939,0.00017846,2]
[350159305,1737661832577,-429.998,0.0001834,2]
[350159306,1737661832586,-162.64,0.000186,2]
[350159307,1737661832597,-950.41607717,0.000189,2]
[350159308,1737661832607,-792.28223889,0.00019,3]
[350159310,1737661832616,-302.9394212,0.00019,2]
[350159311,1737661832626,-300.0,0.00019067,2]
[350159312,1737661832636,-215.2923755,0.00019068,2]
[350159313,1737661832647,-154.1449863,0.00019068,2]
[350159314,1737661832656,-154.2043963,0.00019068,2]
[350159315,1737661832665,-307.8530251,0.00019068,2]
[350159316,1737661832674,-644.06143211,0.00019078,2]
[350159317,1737661832684,-500.0,0.00019178,2]
[350159319,1737661832693,-500.0,0.00019178,2]
[350159321,1737661832703,-500.0,0.00019178,2]
[350159323,1737661832713,-502.92043278,0.00019178,2]
[350159324,1737661832723,-500.0,0.00019178,2]
[350159325,1737661832733,-500.0,0.00019178,2]
[350159326,1737661832743,-500.0,0.00019178,2]
[350159327,1737661832752,-500.0,0.00019178,2]
[350159328,1737661832761,-500.0,0.00019178,2]
[350159329,1737661832771,-501.68967736,0.00019178,2]
[350159330,1737661832781,-228.92033519,0.00019178,2]
[350159331,1737661832791,-801.32,0.00019178,2]
[350159332,1737661832800,-500.0,0.00019178,2]
[350159333,1737661832809,-500.0,0.00019178,2]
[350159334,1737661832820,-500.0,0.00019178,2]
[350159335,1737661832830,-212.56,0.00019178,2]
[350159336,1737661832839,-500.0,0.00019178,2]
[350159337,1737661832849,-560.24,0.00019178,2]
[350159338,1737661832859,-500.0,0.00019178,2]
[350159339,1737661832869,-500.0,0.00019178,2]
[350159340,1737661832879,-500.0,0.00019178,2]
[350159341,1737661832888,-500.0,0.00019178,2]
[350159342,1737661832897,-188.0,0.00019178,2]
[350159343,1737661832907,-500.0,0.00019178,2]
[350159344,1737661832916,-500.0,0.00019178,2]
[350159345,1737661832925,-500.0,0.00019178,2]
[350159346,1737661832935,-500.0,0.00019178,2]
[350159347,1737661832945,-500.0,0.00019178,2]
[350159348,1737661832954,-500.0,0.00019178,2]
[350159349,1737661832964,-500.0,0.00019178,2]
[350159350,1737661832973,-500.0,0.00019178,2]
[350159351,1737661832983,-500.0,0.00019178,2]
[350159352,1737661832993,-523.78,0.00019178,2]
[350159353,1737661833002,-500.0,0.00019178,2]
[350159354,1737661833012,-500.0,0.00019178,2]
[350159355,1737661833022,-500.0,0.00019178,2]
[350159356,1737661833031,-500.0,0.00019178,2]
[350159357,1737661833042,-500.0,0.00019178,2]
[350159358,1737661833051,-500.0,0.00019178,2]
[350159359,1737661833061,-500.0,0.00019178,2]
[350159360,1737661833072,-500.0,0.00019178,2]
[350159361,1737661833083,-500.0,0.00019178,2]
[350159362,1737661833095,-500.0,0.00019178,2]
[350159363,1737661833106,-500.0,0.00019178,2]
[350159364,1737661833117,-500.0,0.00019178,2]
[350159365,1737661833129,-500.0,0.00019178,2]
[350159366,1737661833139,-500.0,0.00019178,2]
[350159367,1737661833149,-500.0,0.00019178,2]
[350159368,1737661833160,-500.0,0.00019178,2]
[350159369,1737661833170,-3644.54,0.00019178,2]
[350159370,1737661833183,-500.0,0.00019178,2]
[350159371,1737661833194,-500.0,0.00019178,2]
[350159372,1737661833204,-500.0,0.00019178,2]
[350159373,1737661833213,-500.0,0.00019178,2]
[350159374,1737661833223,-1104.92,0.00019178,2]
[350159375,1737661833234,-500.0,0.00019178,2]
[350159376,1737661833244,-500.0,0.00019178,2]
[350159377,1737661833254,-500.0,0.00019178,2]
[350159378,1737661833265,-500.0,0.00019178,2]
[350159379,1737661833275,-873.04,0.00019178,2]
[350159380,1737661833286,-852.53,0.00019178,2]
[350159381,1737661833296,-500.0,0.00019178,2]
[350159382,1737661833306,-500.0,0.00019178,2]
[350159383,1737661833316,-500.0,0.00019178,2]
[350159384,1737661833329,-500.0,0.00019178,2]
[350159385,1737661833338,-500.0,0.00019178,2]
[350159386,1737661833348,-149.28640448,0.00019178,2]
[350159387,1737661833362,-350.71359552,0.00019178,2]
[350159388,1737661833372,-500.0,0.00019178,2]
[350159389,1737661833382,-224.57942702,0.00019178,2]
[350159390,1737661833394,-275.42057298,0.00019178,2]
[350159391,1737661833404,-388.92,0.00019178,2]
[350159392,1737661833414,-500.0,0.00019178,2]
[350159393,1737661833423,-500.0,0.00019178,2]
[350159394,1737661833434,-500.0,0.00019178,2]
[350159395,1737661833443,-253.09919002,0.00019178,2]
[350159396,1737661833455,-246.90080998,0.00019178,2]
[350159397,1737661833465,-500.0,0.00019178,2]
[350159398,1737661833475,-500.0,0.00019178,2]
[350159399,1737661833485,-4018.8,0.00019178,2]
[350159400,1737661833497,-3196.8,0.00019178,2]
[350159401,1737661833507,-500.0,0.00019178,2]
[350159402,1737661833517,-8396.03,0.00019178,2]
[350159403,1737661833528,-500.0,0.00019178,2]
[350159404,1737661833538,-1261.41,0.00019178,2]
[350159405,1737661833549,-500.0,0.00019178,2]
[350159406,1737661833560,-500.0,0.00019178,2]
[350159407,1737661833571,-2008.88995859,0.00019178,2]
[350159408,1737661833580,-500.0,0.00019178,2]
[350159409,1737661833591,-500.0,0.00019178,2]
[350159410,1737661833602,-500.0,0.00019178,2]
[350159411,1737661833612,-718.55,0.00019178,2]
[350159412,1737661833622,-500.0,0.00019178,2]
[350159413,1737661833632,-500.0,0.00019178,2]
[350159414,1737661833642,-500.0,0.00019178,2]
[350159415,1737661833652,-408.50264515,0.00019178,2]
[350159416,1737661833665,-91.49735485,0.00019178,2]
[350159417,1737661833676,-500.0,0.00019178,2]
[350159418,1737661833686,-500.0,0.00019178,2]
[350159419,1737661833695,-500.0,0.00019178,2]
[350159420,1737661833705,-1375.63,0.00019178,2]
[350159421,1737661833715,-1316.33493561,0.00019178,2]
[350159655,1737661840363,-1069.0753712,0.00018008,2]
[350159657,1737661840372,-470.05506439,0.00019178,2]
[350159659,1737661840383,-500.0,0.00019178,2]
[350159660,1737661840392,-557.68,0.00019178,2]
[350159661,1737661840402,-500.0,0.00019178,2]
[350159662,1737661840412,-566.68,0.00019178,2]
[350159663,1737661840422,-500.0,0.00019178,2]
[350159664,1737661840432,-150.79286508,0.00019178,2]
[350159665,1737661840441,-500.0,0.00019178,2]
[350159666,1737661840451,-500.0,0.00019178,2]
[350159667,1737661840460,-500.0,0.00019178,2]
[350159668,1737661840470,-500.0,0.00019178,2]
[350159669,1737661840480,-500.0,0.00019178,2]
[350159670,1737661840489,-500.0,0.00019178,2]
[350159671,1737661840499,-500.0,0.00019178,2]
[350159672,1737661840509,-911.59,0.00019178,2]
[350159673,1737661840519,-500.0,0.00019178,2]
[350159674,1737661840530,-500.0,0.00019178,2]
[350159675,1737661840540,-716.12717646,0.00019178,2]
[350159980,1737661843409,-275.94930143,0.00019178,2]
[350160039,1737661846259,-319.70352211,0.00019178,2]
[350160041,1737661846268,-500.0,0.00019178,2]
[350160043,1737661846278,-500.0,0.00019178,2]
[350160045,1737661846287,-500.0,0.00019178,2]
[350160047,1737661846297,-500.0,0.00019178,2]
[350160049,1737661846307,-1445.54,0.00019178,2]
[350160051,1737661846317,-883.91,0.00019178,2]
[350160052,1737661846326,-500.0,0.00019178,2]
[350160055,1737661846344,-6738.79,0.00019178,2]
[350160057,1737661846355,-500.0,0.00019178,2]
[350160059,1737661846365,-500.0,0.00019178,2]
[350160061,1737661846375,-500.0,0.00019178,2]
[350160062,1737661846385,-167.775625,0.00019178,2]
[350160065,1737661846396,-302.9394212,0.0001919,2]
[350160067,1737661846406,-500.0,0.00019199,2]
[350160069,1737661846417,-500.0,0.00019199,2]
[350160071,1737661846427,-500.0,0.00019199,2]
[350160073,1737661846437,-500.0,0.00019199,2]
[350160075,1737661846447,-200.0,0.00019199,2]
[350160077,1737661846456,-500.0,0.00019199,2]
[350160080,1737661846475,-500.0,0.00019199,2]
[350160082,1737661846487,-562.49226645,0.00019199,2]
[350160084,1737661846497,-500.0,0.00019199,2]
[350160086,1737661846507,-500.0,0.00019199,2]
[350160088,1737661846518,-500.0,0.00019199,2]
[350160090,1737661846528,-587.75517591,0.00019199,2]
[350160092,1737661846537,-500.0,0.00019199,2]
[350160094,1737661846547,-431.08216389,0.00019199,2]
[350160096,1737661846556,-500.0,0.00019199,2]
[350160098,1737661846565,-500.0,0.00019199,2]
[350160100,1737661846575,-500.0,0.00019199,2]
[350160102,1737661846592,-2875.06790277,0.000192,2]
[350160104,1737661846602,-2875.06790277,0.000192,2]
[350160106,1737661846611,-2875.06790277,0.000192,2]
[350160108,1737661846621,-2875.06790277,0.000192,2]
[350160110,1737661846630,-1699.78082255,0.000192,2]
[350160112,1737661846640,-1699.78082252,0.000192,2]
[350160114,1737661846649,-1699.78082252,0.000192,2]
[350160116,1737661846658,-1699.78082252,0.000192,2]
[350160118,1737661846667,-143.64785435,0.00019215,2]
[350160120,1737661846679,-277.28315716,0.00019215,2]
[350160839,1737662576462,209.545035,0.00013973,2]
[350160840,1737662576496,151.988317,0.00013973,2]
[350160850,1737662853115,-344.637293,0.00016196,2]
[350160851,1737662853136,-150.32871222,0.000162,2]
[350160852,1737662853159,-344.637293,0.0001636,2]
[350160853,1737662853180,-300.0,0.00016841,2]
[350160854,1737662853202,-100.6812688,0.00016842,2]
[350160856,1737662973091,-437.16104604,0.00016506,2]
[350160857,1737662973112,-300.0,0.00016572,2]
[350160858,1737662973134,-437.16104604,0.00016673,2]
[350160859,1737662973157,-295.18397606,0.00016842,2]
[350160915,1737663035981,-300.0,0.00016841,2]
[350160918,1737663035992,-700.5305,0.00016842,2]
[350160920,1737663036003,-9238.78254379,0.00016842,2]
[350160922,1737663036014,-717.34973082,0.00016842,2]
[350160925,1737663036034,-8647.24333904,0.00016842,2]
[350160927,1737663036045,-5200.22864149,0.00016842,2]
[350160929,1737663036055,-295.0186339,0.00016908,2]
[350160931,1737663036066,-250.0,0.00017102,2]
[350160933,1737663036075,-344.637293,0.00017203,2]
[350160935,1737663036084,-162.1301093,0.00017273,2]
[350160937,1737663036094,-302.400688,0.00017808,2]
[350160939,1737663036103,-424.899,0.0001834,2]
[350160941,1737663036112,-420.0,0.00018397,2]
[350160943,1737663036121,-1154.04225507,0.00018743,2]
[350160945,1737663036130,-152.0,0.00018823,2]
[350160947,1737663036139,-225.31149674,0.00018837,2]
[350160960,1737663036247,-10220.23167428,0.00018837,2]
[350160963,1737663036266,-1791.77256456,0.00018843,5]
[350160965,1737663036276,-1112.10263665,0.000189,2]
[350160967,1737663036285,-10220.23167428,0.00018945,2]
[350160970,1737663036295,-389.17078156,0.00019,2]